Cogmind - Beta 9.2 @@@ ROGUE MODE // 2019.11.13 @ 20:57:16 Player: Soraya Result: Destroyed by as-59432 with Assembled Blade Performance ------------- Evolutions (0) 0 Regions Visited (4) 800 Robots Destroyed (11) 55 Value Destroyed (313) 313 Prototype IDs (22) 440 Alien Tech Used (0) 0 Bonus (300) 300 TOTAL SCORE: 1908 Bonus ------- Aligned with FarCom 300 Cogmind --------- Core Integrity 0/250 Matter 300/300 Energy 100/100 System Corruption 0% Temperature Cool (0) Movement Core (100) Ox1 Location -9/Mines Parts ------- > --- POWER (1) -------- (None) > --- PROPULSION (2) --- (None) > --- UTILITY (2) ------ Small Storage Unit > --- WEAPON (2) ------- (None) > --- INVENTORY (6) ---- Light Ion Engine Light Treads Light Treads Aluminum Leg PSU Rigger Mining Laser Peak State ------------ > --- POWER ------------ Light Nuclear Core > --- PROPULSION ------- Aluminum Leg Aluminum Leg > --- UTILITY ---------- Heat Sink Small Storage Unit > --- WEAPON ----------- Heavy EM Pulse Gun Assault Rifle > --- INVENTORY -------- Ion Engine Light Ion Engine Light Treads Light Treads Small Laser [Rating: 10] Favorites ----------- Power Ion Engine Engine Ion Engine Power Core Light Nuclear Core Propulsion Aluminum Leg Leg Aluminum Leg Utility Small Storage Unit Device Heat Sink Storage Small Storage Unit Weapon Assault Rifle Energy Gun Particle Gun Ballistic Gun Assault Rifle Build | -11 -10 -10 -10 -9 ------- Run | Scr Mat Min Exi Min Slots Evolved . | . . . . . Power . | . . . . . Propulsion . | . . . . . Utility . | . . . . . Weapon . | . . . . . Parts Attached 16 | 7 3 4 . 2 Power 3 | 1 1 1 . . Engine 2 | 1 . 1 . . Core 1 | . 1 . . . Reactor . | . . . . . Propulsion 5 | 2 . 1 . 2 Treads . | . . . . . Leg 5 | 2 . 1 . 2 Wheel . | . . . . . Hover . | . . . . . Flight . | . . . . . Utility 2 | 1 1 . . . Device 1 | . 1 . . . Storage 1 | 1 . . . . Processor . | . . . . . Hackware . | . . . . . Protection . | . . . . . Artifact . | . . . . . Weapon 6 | 3 1 2 . . Energy Gun 4 | 2 1 1 . . Energy Cannon . | . . . . . Ballistic Gun 2 | 1 . 1 . . Ballistic Cannon . | . . . . . Launcher . | . . . . . Special Weapon . | . . . . . Impact Weapon . | . . . . . Slashing Weapon . | . . . . . Piercing Weapon . | . . . . . Special Melee Weapon . | . . . . . Unidentified Prototypes . | . . . . . Parts Lost 8 | . 1 1 . 6 Power 2 | . . 1 . 1 Propulsion 2 | . . . . 2 Utility 1 | . . . . 1 Weapon 3 | . 1 . . 2 Highest Loss Streak 5 | . 1 1 . 5 Average Slot Usage (%) 95 | . 90 100 100 85 Engine 12 | . 8 11 14 13 Core 1 | . 5 2 . . Leg 27 | . 28 28 28 26 Device 12 | . 5 14 14 13 Storage 14 | . 14 14 14 14 Energy Gun 11 | . 14 14 14 2 Ballistic Gun 13 | . 14 14 14 13 Naked Turns . | . . . . . Heaviest Build 15 | 13 15 15 15 15 Greatest Support 20 | 20 20 20 20 20 Greatest Overweight (x) 1 | . . . . 1 Average Overweight (x) . | . . . . . Largest Inventory Capacity 6 | 6 6 6 6 6 Average Capacity 5 | 5 6 6 6 6 Most Carried 6 | 4 6 6 6 6 Average Carried 5 | 2 5 5 5 6 Final Capacity 6 | 6 6 6 6 6 Final Carried 6 | 4 6 6 6 6 Class Distribution -------------------- 100% | Mutant Dominant Class ---------------- Mutant | -10/Materials Mutant | -10/Mines Mutant | -10/Exiles Mutant | -9/Mines Resources | -11 -10 -10 -10 -9 ----------- Run | Scr Mat Min Exi Min Matter Collected 460 | 204 104 91 . 61 Remotely . | . . . . . Salvage Created 427 | . 104 215 . 108 Parts 24 | . 5 12 . 7 Haulers Intercepted . | . . . . . Recyclers Shooed 2 | . . . . 2 Parts Field Recycled . | . . . . . Retrieved Matter . | . . . . . Parts Self-Destructed . | . . . . . Prevented . | . . . . . Kills | -11 -10 -10 -10 -9 ------- Run | Scr Mat Min Exi Min Combat Hostiles Destroyed 10 | . 2 5 . 3 Guns 10 | . 2 5 . 3 Classes Destroyed 3 | . 1 2 . . Recycler 1 | . . 1 . . Swarmer 3 | . . 3 . . Grunt 7 | . 2 2 . 3 Best Kill Streak 3 | . 2 3 . 3 Combat Bots Only 3 | . 2 3 . 3 Max Kills in Single Turn 1 | . 1 1 . 1 Gunslinging . | . . . . . Exploded . | . . . . . Melee . | . . . . . Uniques/NPCs Destroyed . | . . . . . Combat | -11 -10 -10 -10 -9 -------- Run | Scr Mat Min Exi Min Damage Taken 962 | . 83 343 . 536 Core 270 | . . 92 . 178 Absorbed by Shields . | . . . . . Core Remaining (%) 100 | 100 . . . . Volleys Fired 42 | . 6 17 . 19 Largest 2 | . 2 2 . 2 Hottest 85 | . 65 85 . 85 Shots Fired 72 | . 11 34 . 27 Gun 72 | . 11 34 . 27 Cannon . | . . . . . Launcher . | . . . . . Special . | . . . . . Kinetic 42 | . 6 17 . 19 Thermal 15 | . . 7 . 8 Explosive . | . . . . . Electromagnetic 15 | . 5 10 . . Robot Hit Streak 12 | . 3 6 . 12 Robot Miss Streak 5 | . 2 5 . 3 Penetration Max . | . . . . . Secondary Targets 3 | . . 2 . 1 Max Gunslinging Chain 1 | . . 1 . 1 Shots Hit Robots 46 | . 7 19 . 20 Core Hits 19 | . 3 8 . 8 Critical Hits 1 | . 1 . . . Critical Kills 1 | . 1 . . . Critical Parts Destroyed . | . . . . . Melee Attacks . | . . . . . Impact . | . . . . . Slashing . | . . . . . Piercing . | . . . . . Sneak Attacks . | . . . . . Combat Hostiles . | . . . . . Follow-up Attacks . | . . . . . Damage Inflicted 780 | . 104 362 . 314 Guns 730 | . 104 318 . 308 Cannons . | . . . . . Explosions 44 | . . 44 . . Melee . | . . . . . Ramming 6 | . . . . 6 Kinetic 321 | . 39 97 . 185 Thermal 226 | . . 103 . 123 Explosive . | . . . . . Electromagnetic 227 | . 65 162 . . Impact . | . . . . . Slashing . | . . . . . Piercing . | . . . . . Highest Corruption . | . . . . . Average Corruption . | . . . . . Corruption Purged . | . . . . . Overload Shots . | . . . . . Overflow Damage . | . . . . . Projectiles . | . . . . . Explosions . | . . . . . Melee . | . . . . . Knockbacks . | . . . . . Impact . | . . . . . Kinetic . | . . . . . Secondary . | . . . . . Self-Inflicted Damage 28 | . . 26 . 2 Shots 1 | . . 1 . . Rammed 3 | . . . . 3 Targets Rammed 3 | . . . . 3 Kicked . | . . . . . Crushed . | . . . . . Highest Temperature 150 | . 18 150 . 15 Average Temperature 47 | . 10 85 . 8 Received Heat Transfer 269 | . 45 135 . 89 Siege Activations . | . . . . . Robots Corrupted . | . . . . . Combat Hostiles . | . . . . . Parts Fried . | . . . . . Impact Corruptions . | . . . . . Robots Melted . | . . . . . Combat Hostiles . | . . . . . Parts Melted . | . . . . . Heat Transferred 444 | . . 148 . 296 Parts Sabotaged . | . . . . . Parts Stolen . | . . . . . Parts Stripped . | . . . . . Power Chain Reactions 1 | . . 1 . . Missiles Intercepted . | . . . . . Alert | -11 -10 -10 -10 -9 ------- Run | Scr Mat Min Exi Min Peak Influence 152 | . 98 152 . 60 Average Influence 61 | . 53 93 . 46 Maximum Alert Level . | . . . . . Low Security (%) 100 | 100 100 100 . 100 Level 1 . | . . . . . Level 2 . | . . . . . Level 3 . | . . . . . Level 4 . | . . . . . Level 5 . | . . . . . High Security . | . . . . . Max Security . | . . . . . Squads Dispatched . | . . . . . Investigation . | . . . . . Extermination . | . . . . . Reinforcement . | . . . . . Assault . | . . . . . Garrison . | . . . . . Intercept . | . . . . . Construction Impeded . | . . . . . Haulers Reinforced . | . . . . . Stealth | -11 -10 -10 -10 -9 --------- Run | Scr Mat Min Exi Min Distress Signals . | . . . . . Communications Jammed . | . . . . . Distress Signals . | . . . . . Times Spotted 27 | . 5 5 . 17 Peak Tracking Total 11 | . 3 3 . 11 Tactical Retreats 2 | . . . . 2 Traps | -11 -10 -10 -10 -9 ------- Run | Scr Mat Min Exi Min Traps Triggered . | . . . . . Indirectly . | . . . . . Trap Hack Attempts . | . . . . . Triggered . | . . . . . Disarmed . | . . . . . Reprogrammed 4 | . 4 . . . Reused . | . . . . . Traps Extracted . | . . . . . Installed . | . . . . . Triggered . | . . . . . Machines | -11 -10 -10 -10 -9 ---------- Run | Scr Mat Min Exi Min Machines Disabled . | . . . . . Max in Single Turn . | . . . . . Machines Sabotaged . | . . . . . Garrisons Compromised . | . . . . . Overloaded Fab Kills . | . . . . . Fab Network Shutdowns . | . . . . . Hacking | -11 -10 -10 -10 -9 --------- Run | Scr Mat Min Exi Min Machines Accessed 5 | . 3 . 2 . Terminals 3 | . 3 . . . Fabricators . | . . . . . Repair Stations . | . . . . . Recycling Units . | . . . . . Scanalyzers . | . . . . . Garrison Access . | . . . . . Total Hacks 15 | . 13 . 2 . Successful 9 | . 7 . 2 . Failed 6 | . 6 . . . Catastrophic . | . . . . . Database Lockouts . | . . . . . Manual 1 | . . . 1 . Terminals 13 | . 13 . . . Fabricators . | . . . . . Repair Stations . | . . . . . Recycling Units . | . . . . . Scanalyzers . | . . . . . Garrison Access . | . . . . . Terminal Hacks 9 | . 7 . 2 . Record 1 | . . . 1 . Robot Analysis 1 | . 1 . . . Branch Access Points 1 | . 1 . . . Locate Traps 2 | . 2 . . . Reprogram Traps 1 | . 1 . . . Registered Components 1 | . 1 . . . Zone Layout 1 | . 1 . . . EX-Prototype ID Bank 1 | . . . 1 . Fabricator Hacks . | . . . . . Repair Station Hacks . | . . . . . Recycling Unit Hacks . | . . . . . Scanalyzer . | . . . . . Garrison Access Hacks . | . . . . . Unauthorized Hacks . | . . . . . Terminals . | . . . . . Fabricators . | . . . . . Repair Stations . | . . . . . Recycling Units . | . . . . . Scanalyzers . | . . . . . Garrison Access . | . . . . . Data Cores Recovered . | . . . . . Used . | . . . . . Hacking Detections 3 | . 3 . . . Full Trace Events 1 | . 1 . . . Feedback Events . | . . . . . Feedback Blocked . | . . . . . Robot Schematics Acquired . | . . . . . Robots Built . | . . . . . Matter . | . . . . . Time . | . . . . . Total Robot Build Rating . | . . . . . Part Schematics Acquired . | . . . . . Parts Built . | . . . . . Matter . | . . . . . Time . | . . . . . Total Part Build Rating . | . . . . . Parts Repaired . | . . . . . Time . | . . . . . Parts Recycled . | . . . . . Recycled Matter . | . . . . . Retrieved Matter . | . . . . . Retrieved Components . | . . . . . Parts Scanalyzed . | . . . . . Part Schematics Acquired . | . . . . . Parts Damaged . | . . . . . Bothacking | -11 -10 -10 -10 -9 ------------ Run | Scr Mat Min Exi Min Used RIF Installer . | . . . . . Robots Hacked . | . . . . . Non-combat . | . . . . . Combat . | . . . . . Robot Hacks Applied . | . . . . . Relay Couplers Released . | . . . . . Robots Rewired . | . . . . . Allies Hacked . | . . . . . Hacks Repelled . | . . . . . Allies | -11 -10 -10 -10 -9 -------- Run | Scr Mat Min Exi Min Total Allies . | . . . . . Largest Group . | . . . . . Highest-Rated Group . | . . . . . Highest-Rated Ally . | . . . . . Total Orders . | . . . . . Ally Attacks . | . . . . . Total Damage . | . . . . . Kills . | . . . . . Allies Corrupted . | . . . . . Allies Melted . | . . . . . Intel | -11 -10 -10 -10 -9 ------- Run | Scr Mat Min Exi Min Robot Analysis Total 1 | . 1 . . . Derelict Logs Recovered 1 | . . 1 . . Drone Launches . | . . . . . Drone Recoveries . | . . . . . Exploration | -11 -10 -10 -10 -9 ------------- Run | Scr Mat Min Exi Min Turns Passed 1617 | 64 236 331 684 302 Spaces Moved 1162 | 43 167 189 568 195 Core 15 | 6 . . . 9 Treads . | . . . . . Legs 1147 | 37 167 189 568 186 Wheels . | . . . . . Hover . | . . . . . Flight . | . . . . . Fastest Speed 50 | 50 120 120 120 100 Average Speed 119 | 110 120 120 120 119 Slowest Speed 150 | 120 120 120 120 150 Overloaded Moves . | . . . . . Propulsion Burnouts . | . . . . . Robots Hopped . | . . . . . Cave-ins Triggered . | . . . . . Exploration Rate (%) 37 | 4 21 23 92 48 Regions Visited 4 Branch Regions 3 Pre-discovered Areas 1 | . . . 1 . Known Exits Taken 1 | . 1 . . . Unknown Exits Taken 3 | 1 . 1 1 . Scrap Searched 1 | . . 1 . . Spaces Dug . | . . . . . Terrain Destroyed 1 | . . 1 . . Melee . | . . . . . Projectile . | . . . . . AOE 1 | . . 1 . . Actions | -11 -10 -10 -10 -9 --------- Run | Scr Mat Min Exi Min Total 1314 | 59 191 258 571 235 Wait 73 | . 10 47 . 16 Move 1158 | 42 166 188 567 195 Hop . | . . . . . Pick Up 18 | 10 5 1 2 . Fast Attach . | . . . . . Attach 9 | 6 2 1 . . Detach . | . . . . . Swap 7 | 1 1 3 . 2 Drop 4 | . 1 1 2 . Fire 42 | . 6 17 . 19 Melee . | . . . . . Ram . | . . . . . Kick 3 | . . . . 3 Crush . | . . . . . Escape Stasis . | . . . . . Rewire . | . . . . . Trap . | . . . . . Miscellaneous . | . . . . . Route ------- -11/Scrapyard -10/Materials (discovered 2 exits: *Min x2) -10/Mines (discovered 2 exits: [*Mat] / *Exi) -10/Exiles (discovered 2 exits: [*Min x2]) -9/Mines (discovered 1 exit: [*Mat]) History --------- Turn | Location | Event 3 | -11/Scrapyard | Discovered new exit (range 16) 65 | -11/Scrapyard | Entered Materials 115 | -10/Materials | Identified exit to Mines 301 | -10/Materials | Entered Mines 318 | -10/Mines | Build established: Mutant 336 | -10/Mines | Discovered new exit (range 16) 431 | -10/Mines | Learned Materials emergency access door positions 623 | -10/Mines | Deemed a non-threat by the Exiles lab entrance 624 | -10/Mines | Discovered new exit (range 5) 632 | -10/Mines | Entered Exiles 652 | -10/Exiles | Discovered new exit (range 14) 689 | -10/Exiles | Met 8R-AWN 706 | -10/Exiles | Met EX-HEX 782 | -10/Exiles | Met EX-DEC 809 | -10/Exiles | Visited The Gauntlet 1001 | -10/Exiles | Discovered new exit (range 12) 1076 | -10/Exiles | Learned location of Zion (-7) 1104 | -10/Exiles | Met EX-BIN 1117 | -10/Exiles | Aligned with FarCom system 1118 | -10/Exiles | Given EX-Vault access code 1156 | -10/Exiles | Opened EX-Vault 1167 | -10/Exiles | Found Supersonic Drone Bay 1170 | -10/Exiles | Found PSU Rigger 1208 | -10/Exiles | Exiles lab attacked by MAIN.C 1316 | -10/Exiles | Left Exiles lab with PSU Rigger 1316 | -10/Exiles | Entered Mines 1338 | -9/Mines | Discovered new exit (range 9) 1427 | -9/Mines | Assembled infested the area 1594 | -9/Mines | Core integrity fell below 50% 1618 | -9/Mines | Core integrity fell below 20% 1618 | -9/Mines | Destroyed by as-59432 with Assembled Blade Last Messages --------------- 01388_ Acquired 28 matter. 01398_ Acquired 25 matter. 01398_ K-01 Serf collects debris. 01402_ Slammed into K-01 Serf. 01403_ Acquired 8 matter. 01427_ ALERT: Infestation in the mines, dispatching Demolisher response squad. 01431_ Slammed into R-06 Scavenger. 01437_ C-30 ARC bursts open, deploying its payload. 01437_ D-53 Grenadier unfolds itself. [Achievement: Slippery One] 01489_ K-01 Serf collects debris. 01581_ U-05 Engineer destroyed. 01599_ Aluminum Leg destroyed. 01607_ Assault Rifle destroyed. 01608_ Aluminum Leg destroyed. 01608_ Ion Engine destroyed. 01609_ Heat Sink destroyed. 01613_ K-01 Serf destroyed. 01615_ Seismic Survey Station disabled. Map ----- +----------------------------------------------------+ | ????????????????????????????????????????????? | | ????????????????????????????????????????????? | | ????????????????????????????????????????????? | | ????????????????????????????????????????????? | | ????????????????????????????????????????????? | | ????????????????????????????????????????????? | | ????????????????????????????????????????????? | | ????????????????????????????????????????????? | | ????????????????????????????????????????????? | | ????????????????????????????????????????????? | | ????????????????????????????????????????????? | | ????????????????????????????????????????????? | | ????????????????????????????????????????????? | | ????????????????????????????????????????????? | | ????????????????????????????????????????????? | | ????????????????????????????????????????????? | | ????????????????????????????????????????????? | | ??????###???????????????????????????????????? | | ?????# ##??????????????????????????????????? | | ?#### #?????????????####?????????????????? | | ## #????????????? ! #?????????????????? | | # #?????????????#%=#?????????????????? | | # #??????????????#= #?????????????????? | | ###??????????????# ##????????????????? | | ##???####?????????# ##???????????????? | | ##???# ##??????### @ ##??????????????? | | # ##### ##????## aa #??????????????? | | ## ###### a #??????????????? | | ?## a #??????????????? | | ??# ####### a "" #??????????????? | | ??# #?????## """a #??????????????? | | ??## ##??????## """ #??????????????? | | ???###????????## ### #??????????????? | | ???????????????# #?##### #??????????????? | | ???????????????# #?????## ##??????????????? | | ?????########### ##?????####???????????????? | | ?????# #????????????????????????? | | ?????# """ """" #????????????????????????? | | ?????# """ """" #????????????????????????? | | ?????# """ """" #????????????????????????? | | ?????# #????????????????????????? | | ?????# """" """" #????????????????????????? | | ???? """" """" #????????????????????????? | | ?????? """" """" #????????????????????????? | | ?????? %*%= #????????????????????????? | | ??????########[#####????????????????????????? | | ????#######??#%#????????????????????????????? | | ???? #??#*#????????????????????????????? | | ###?? ##?#%#????????????????????????????? | | %"#?? < ??=[?????????????????????????????? | +----------------------------------------------------+ Best States ------------- Heat Dissipation 35 Energy Generation 14 Energy Capacity 250 Matter Stores 300 Matter Capacity 300 Sight Range 16 Terrain Scan Density 10 Evasion (%) 40 Item Schematics ----------------- None Robot Schematics ------------------ None Fabricated ------------ Nothing Alien Tech Used ----------------- None Achievements -------------- Slippery One Challenges ------------ None Game ------ Seed MolecularReactiveSabre Manual? 0 Play Time 00:24:53 Cumulative 14.8 hours Start 2019.11.13 @ 20:33:31 End 2019.11.13 @ 20:57:16 Sessions 1 Manual Loads 0 Difficulty Rogue Special Mode None Game No. 14 Rogue 11 Adventurer 1 Explorer 2 Win Type - Total 0 Types 0/0/0/0/0/0/0 Lore% 16 Gallery% 16 Achievement% 11 Wizard Run 0 Options --------- ASCII 0 Keyboard 0 Movement Arrows Keybinds 0 Fullscreen 2 Font 18/Terminus Map View 76x50 Tactical HUD 1 Map Filters NONE Filters NONE Steam 1 RUN: abcef883-7afa-43d8-88f4-c605ceade15e